[Event "*** Titled Tuesday Blitz"]
[Site "Chess.com"]
[Date "2018.08.07"]
[Round "5"]
[White "Annawel"]
[Black "krzyzan94"]
[Result "1/2-1/2"]
[WhiteElo "2796"]
[BlackElo "2655"]
[TimeControl "180+2"]
[EndTime "14:04:40 PDT"]
[Termination "Game drawn by agreement"]

1. e4 {[%clk 0:03:01.9]} 1... c5 {[%clk 0:02:59.5]} 2. Nf3 {[%clk 0:03:03]} 2...
g6 {[%clk 0:02:51.8]} 3. h4 {[%clk 0:02:58.5]} 3... h5 {[%clk 0:02:43.1]} 4. Bc4
{[%clk 0:02:58.5]} 4... Bg7 {[%clk 0:02:41.8]} 5. d3 {[%clk 0:02:58.4]} 5... Nc6
{[%clk 0:02:41.9]} 6. a3 {[%clk 0:02:58.8]} 6... d6 {[%clk 0:02:38.3]} 7. Nc3
{[%clk 0:02:55.7]} 7... a6 {[%clk 0:02:37.7]} 8. Ba2 {[%clk 0:02:55]} 8... Nd4
{[%clk 0:02:32.4]} 9. Nxd4 {[%clk 0:02:47.5]} 9... cxd4 {[%clk 0:02:32.8]} 10.
Qf3 {[%clk 0:02:44.3]} 10... Nf6 {[%clk 0:02:20.8]} 11. Ne2 {[%clk 0:02:38.7]}
11... Bg4 {[%clk 0:02:20.7]} 12. Qg3 {[%clk 0:02:39.5]} 12... Bxe2 {[%clk
0:01:54.8]} 13. Kxe2 {[%clk 0:02:41.4]} 13... Qd7 {[%clk 0:01:56.2]} 14. Bb3
{[%clk 0:02:30.3]} 14... Rc8 {[%clk 0:01:52.4]} 15. Re1 {[%clk 0:02:23.8]} 15...
Qg4+ {[%clk 0:01:48]} 16. Qxg4 {[%clk 0:02:22.3]} 16... hxg4 {[%clk 0:01:48.2]}
17. Rh1 {[%clk 0:02:10.4]} 17... Nd7 {[%clk 0:01:46.9]} 18. a4 {[%clk
0:02:05.7]} 18... Nc5 {[%clk 0:01:38.7]} 19. Bc4 {[%clk 0:02:06.9]} 19... Nxe4
{[%clk 0:01:38.1]} 20. a5 {[%clk 0:01:45.8]} 20... Nf6 {[%clk 0:01:26.8]} 21.
Ra4 {[%clk 0:01:41.3]} 21... O-O {[%clk 0:01:23.2]} 22. Bg5 {[%clk 0:01:36.3]}
22... Rc5 {[%clk 0:01:21.4]} 23. Bb3 {[%clk 0:01:30.2]} 23... Nd7 {[%clk
0:01:17.5]} 24. Kd1 {[%clk 0:01:25.9]} 24... Bf6 {[%clk 0:01:15.6]} 25. Bd2
{[%clk 0:01:08.4]} 25... Kg7 {[%clk 0:01:15.9]} 26. g3 {[%clk 0:01:01.6]} 26...
Ne5 {[%clk 0:01:08.8]} 27. Rxd4 {[%clk 0:00:58.5]} 27... Rfc8 {[%clk 0:00:52.4]}
28. Ra4 {[%clk 0:00:52.1]} 28... Rb5 {[%clk 0:00:44.6]} 29. Ra3 {[%clk
0:00:28.6]} 29... Nf3 {[%clk 0:00:42.8]} 30. c3 {[%clk 0:00:29.4]} 30... d5
{[%clk 0:00:40.3]} 31. d4 {[%clk 0:00:28.6]} 31... e5 {[%clk 0:00:37.1]} 32.
dxe5 {[%clk 0:00:29.4]} 32... Nxe5 {[%clk 0:00:39]} 33. h5 {[%clk 0:00:29.3]}
33... gxh5 {[%clk 0:00:35.4]} 34. Rxh5 {[%clk 0:00:31.2]} 34... Nc4 {[%clk
0:00:26.7]} 35. Bxc4 {[%clk 0:00:30]} 35... dxc4 {[%clk 0:00:28.6]} 36. Rxb5
{[%clk 0:00:28]} 36... axb5 {[%clk 0:00:30.5]} 37. a6 {[%clk 0:00:26.4]} 37...
bxa6 {[%clk 0:00:32.4]} 38. Rxa6 {[%clk 0:00:28.2]} 38... Rd8 {[%clk 0:00:30.9]}
39. Ke2 {[%clk 0:00:29.1]} 39... Rd5 {[%clk 0:00:22.5]} 40. Rc6 {[%clk
0:00:24.1]} 40... Kg6 {[%clk 0:00:22.8]} 41. Be3 {[%clk 0:00:24]} 1/2-1/2

[Event "*** Titled Tuesday Blitz"]
[Site "Chess.com"]
[Date "2018.08.07"]
[Round "5"]
[White "maciek_92"]
[Black "Vuk2000"]
[Result "1-0"]
[WhiteElo "2722"]
[BlackElo "2674"]
[TimeControl "180+2"]
[EndTime "14:04:41 PDT"]
[Termination "maciek_92 won by resignation"]

1. c4 {[%clk 0:03:01.9]} 1... e5 {[%clk 0:03:00.6]} 2. Nc3 {[%clk 0:03:01.7]}
2... Nc6 {[%clk 0:03:01.9]} 3. g3 {[%clk 0:03:02.9]} 3... g6 {[%clk 0:03:02.6]}
4. Bg2 {[%clk 0:03:04.1]} 4... Bg7 {[%clk 0:03:03.9]} 5. e4 {[%clk 0:03:04.4]}
5... d6 {[%clk 0:03:04.6]} 6. Nge2 {[%clk 0:03:05.7]} 6... Be6 {[%clk 0:03:05]}
7. d3 {[%clk 0:03:06.3]} 7... Qd7 {[%clk 0:03:06.3]} 8. h3 {[%clk 0:03:06.5]}
8... Nge7 {[%clk 0:03:05.4]} 9. Be3 {[%clk 0:03:04]} 9... O-O {[%clk 0:03:00.8]}
10. Qd2 {[%clk 0:03:02.3]} 10... Nd4 {[%clk 0:02:44.9]} 11. Bxd4 {[%clk
0:02:59.6]} 11... exd4 {[%clk 0:02:44.5]} 12. Nd5 {[%clk 0:03:01.5]} 12... f5
{[%clk 0:02:38]} 13. Nxe7+ {[%clk 0:03:00.5]} 13... Qxe7 {[%clk 0:02:38.4]} 14.
exf5 {[%clk 0:03:01.8]} 14... Bxf5 {[%clk 0:02:36.3]} 15. O-O {[%clk 0:03:02.6]}
15... c6 {[%clk 0:02:27]} 16. Rae1 {[%clk 0:03:00.5]} 16... Qf6 {[%clk
0:02:16.3]} 17. Kh2 {[%clk 0:02:58.2]} 17... Rae8 {[%clk 0:02:07]} 18. Nc1
{[%clk 0:02:55.3]} 18... Bd7 {[%clk 0:02:02]} 19. Rxe8 {[%clk 0:02:53.7]} 19...
Rxe8 {[%clk 0:02:02.7]} 20. Re1 {[%clk 0:02:54.9]} 20... g5 {[%clk 0:01:33.4]}
21. Rxe8+ {[%clk 0:02:52.1]} 21... Bxe8 {[%clk 0:01:35.3]} 22. Qe2 {[%clk
0:02:50.7]} 22... Bg6 {[%clk 0:01:33.1]} 23. Nb3 {[%clk 0:02:51.5]} 23... h5
{[%clk 0:01:22.3]} 24. Nd2 {[%clk 0:02:50.4]} 24... Bh6 {[%clk 0:01:01]} 25. Be4
{[%clk 0:02:48]} 25... Bf7 {[%clk 0:00:58.2]} 26. Bf3 {[%clk 0:02:37]} 26... h4
{[%clk 0:00:36.4]} 27. Ne4 {[%clk 0:02:29.1]} 27... Qe5 {[%clk 0:00:37]} 28. Bh5
{[%clk 0:02:29.2]} 28... hxg3+ {[%clk 0:00:30.3]} 29. fxg3 {[%clk 0:02:28.5]}
29... Be6 {[%clk 0:00:31.2]} 30. Bg4 {[%clk 0:02:05.8]} 30... Bf7 {[%clk
0:00:31.6]} 31. Qf2 {[%clk 0:01:55.2]} 31... Bg7 {[%clk 0:00:25]} 32. Qd2 {[%clk
0:01:46.4]} 32... d5 {[%clk 0:00:18.4]} 33. Nxg5 {[%clk 0:01:29.3]} 33... dxc4
{[%clk 0:00:09.6]} 34. Nxf7 {[%clk 0:01:30.2]} 34... Kxf7 {[%clk 0:00:11]} 35.
dxc4 {[%clk 0:01:31]} 35... d3 {[%clk 0:00:09.3]} 36. b3 {[%clk 0:01:30.4]}
36... Qd6 {[%clk 0:00:08]} 37. Bf5 {[%clk 0:01:29.2]} 37... Qd4 {[%clk
0:00:05.4]} 38. Bxd3 {[%clk 0:01:27.5]} 38... Kg8 {[%clk 0:00:05.1]} 39. Qe2
{[%clk 0:01:27.8]} 39... Qd6 {[%clk 0:00:05.6]} 40. Qe4 {[%clk 0:01:24.7]} 40...
Be5 {[%clk 0:00:06.6]} 41. Qg6+ {[%clk 0:01:25.5]} 41... Kf8 {[%clk 0:00:07.6]}
42. Qxd6+ {[%clk 0:01:26.2]} 42... Bxd6 {[%clk 0:00:09.5]} 43. h4 {[%clk
0:01:26.1]} 43... Kg7 {[%clk 0:00:10.9]} 44. Kh3 {[%clk 0:01:26.7]} 44... Kf6
{[%clk 0:00:12.3]} 45. Kg4 {[%clk 0:01:23]} 45... a5 {[%clk 0:00:08.3]} 46. Kf3
{[%clk 0:01:23.1]} 46... Ke5 {[%clk 0:00:05.4]} 47. g4 {[%clk 0:01:23.3]} 47...
Kd4 {[%clk 0:00:07]} 48. Bf5 {[%clk 0:01:23.7]} 48... b5 {[%clk 0:00:08.7]} 49.
cxb5 {[%clk 0:01:23.4]} 49... cxb5 {[%clk 0:00:09.9]} 50. Bd7 {[%clk 0:01:24.1]}
50... Be7 {[%clk 0:00:10.4]} 51. g5 {[%clk 0:01:23.7]} 51... b4 {[%clk
0:00:09.8]} 52. Kg4 {[%clk 0:01:24.7]} 52... Kc3 {[%clk 0:00:09]} 1-0

[Event "*** Titled Tuesday Blitz"]
[Site "Chess.com"]
[Date "2018.08.07"]
[Round "5"]
[White "Nyzhnyk_Illia"]
[Black "FairChess_on_YouTube"]
[Result "1-0"]
[WhiteElo "2775"]
[BlackElo "2952"]
[TimeControl "180+2"]
[EndTime "14:04:47 PDT"]
[Termination "Nyzhnyk_Illia won by resignation"]

1. Nf3 {[%clk 0:03:01.9]} 1... Nf6 {[%clk 0:03:00.2]} 2. d4 {[%clk 0:03:03]}
2... e6 {[%clk 0:03:00.9]} 3. Bf4 {[%clk 0:03:03.6]} 3... Be7 {[%clk 0:02:58]}
4. e3 {[%clk 0:03:04.2]} 4... Nh5 {[%clk 0:02:57.7]} 5. Be5 {[%clk 0:03:04.6]}
5... d6 {[%clk 0:02:56.2]} 6. Bg3 {[%clk 0:02:51.9]} 6... c5 {[%clk 0:02:56.3]}
7. c3 {[%clk 0:02:52.4]} 7... Nc6 {[%clk 0:02:54.7]} 8. Nbd2 {[%clk 0:02:53.4]}
8... Nxg3 {[%clk 0:02:46.5]} 9. hxg3 {[%clk 0:02:54.3]} 9... b6 {[%clk
0:02:45.6]} 10. Bd3 {[%clk 0:02:50.5]} 10... Bb7 {[%clk 0:02:44.9]} 11. Qe2
{[%clk 0:02:49]} 11... a6 {[%clk 0:02:42.4]} 12. g4 {[%clk 0:02:44.9]} 12... Qc7
{[%clk 0:02:37.3]} 13. Be4 {[%clk 0:02:36.3]} 13... d5 {[%clk 0:02:18.8]} 14.
Bd3 {[%clk 0:02:37.3]} 14... c4 {[%clk 0:02:15.2]} 15. Bc2 {[%clk 0:02:38.3]}
15... b5 {[%clk 0:02:16.2]} 16. a3 {[%clk 0:02:20.9]} 16... a5 {[%clk
0:02:09.7]} 17. e4 {[%clk 0:02:21.4]} 17... g6 {[%clk 0:02:05.6]} 18. Nf1 {[%clk
0:01:54.9]} 18... O-O-O {[%clk 0:01:40.4]} 19. Ne3 {[%clk 0:01:52.9]} 19... Kb8
{[%clk 0:01:40]} 20. Nd2 {[%clk 0:01:29.9]} 20... Bg5 {[%clk 0:01:27.8]} 21.
exd5 {[%clk 0:01:09.9]} 21... exd5 {[%clk 0:01:21.3]} 22. Qf3 {[%clk 0:01:11.1]}
22... Rde8 {[%clk 0:01:00.4]} 23. Kf1 {[%clk 0:01:11.3]} 23... Ne7 {[%clk
0:00:57.9]} 24. Kg1 {[%clk 0:01:08]} 24... a4 {[%clk 0:00:55.7]} 25. Ndf1 {[%clk
0:01:03.9]} 25... Qd6 {[%clk 0:00:50.7]} 26. Re1 {[%clk 0:01:04.6]} 26... Bc8
{[%clk 0:00:50.6]} 27. g3 {[%clk 0:00:59.6]} 27... Ng8 {[%clk 0:00:45.8]} 28.
Qg2 {[%clk 0:01:00.1]} 28... Bd7 {[%clk 0:00:29.8]} 29. f4 {[%clk 0:00:57.1]}
29... Bd8 {[%clk 0:00:30.5]} 30. g5 {[%clk 0:00:56.8]} 30... f6 {[%clk
0:00:28.6]} 31. Bxg6 {[%clk 0:00:55.7]} 31... Re7 {[%clk 0:00:25]} 32. Bc2
{[%clk 0:00:29.2]} 32... fxg5 {[%clk 0:00:24.3]} 33. fxg5 {[%clk 0:00:31.1]}
33... Re8 {[%clk 0:00:21.6]} 34. g6 {[%clk 0:00:28.8]} 34... Nf6 {[%clk
0:00:22.2]} 35. gxh7 {[%clk 0:00:28.3]} 35... Ng4 {[%clk 0:00:19.7]} 36. Nf5
{[%clk 0:00:20.7]} 36... Qf6 {[%clk 0:00:07.5]} 37. Rxe8 {[%clk 0:00:21.4]}
37... Rxe8 {[%clk 0:00:08.2]} 38. Qf3 {[%clk 0:00:22.9]} 38... Qg5 {[%clk
0:00:03.8]} 39. h8=Q {[%clk 0:00:23.2]} 39... Rxh8 {[%clk 0:00:04.7]} 40. Rxh8
{[%clk 0:00:25.1]} 1-0

[Event "*** Titled Tuesday Blitz"]
[Site "Chess.com"]
[Date "2018.08.07"]
[Round "5"]
[White "BillieKimbah"]
[Black "Angry_Twin"]
[Result "1-0"]
[WhiteElo "2815"]
[BlackElo "2628"]
[TimeControl "180+2"]
[EndTime "14:04:52 PDT"]
[Termination "BillieKimbah won by resignation"]

1. Nf3 {[%clk 0:03:01.9]} 1... d5 {[%clk 0:02:58.8]} 2. e3 {[%clk 0:03:02.2]}
2... Nf6 {[%clk 0:02:59.8]} 3. c4 {[%clk 0:03:02.7]} 3... e6 {[%clk 0:02:59.6]}
4. b3 {[%clk 0:03:03.9]} 4... Be7 {[%clk 0:03:00.4]} 5. Bb2 {[%clk 0:03:05.2]}
5... O-O {[%clk 0:03:02]} 6. Nc3 {[%clk 0:03:06.4]} 6... c5 {[%clk 0:03:03.4]}
7. cxd5 {[%clk 0:03:07.5]} 7... Nxd5 {[%clk 0:03:04.4]} 8. Qc2 {[%clk
0:03:04.6]} 8... Nb4 {[%clk 0:02:58]} 9. Qe4 {[%clk 0:03:02.9]} 9... N8c6 {[%clk
0:02:54.2]} 10. h4 {[%clk 0:03:02.8]} 10... f5 {[%clk 0:02:43.1]} 11. Qb1 {[%clk
0:03:03.3]} 11... Bf6 {[%clk 0:02:43.9]} 12. Be2 {[%clk 0:02:55.9]} 12... Kh8
{[%clk 0:02:38.6]} 13. h5 {[%clk 0:02:46.8]} 13... e5 {[%clk 0:02:32.9]} 14. a3
{[%clk 0:02:46.5]} 14... e4 {[%clk 0:02:30.7]} 15. axb4 {[%clk 0:02:41.3]} 15...
exf3 {[%clk 0:02:26.8]} 16. Bxf3 {[%clk 0:02:37]} 16... Nxb4 {[%clk 0:02:26.8]}
17. O-O {[%clk 0:02:33.7]} 17... Nd3 {[%clk 0:02:22.5]} 18. Qc2 {[%clk
0:02:19.5]} 18... h6 {[%clk 0:02:06.2]} 19. Ra4 {[%clk 0:02:10.9]} 19... Be6
{[%clk 0:01:52.3]} 20. Ba1 {[%clk 0:01:47.2]} 20... Nb4 {[%clk 0:01:50.5]} 21.
Qd1 {[%clk 0:01:44.2]} 21... Qd7 {[%clk 0:01:47.5]} 22. Ne2 {[%clk 0:01:34.4]}
22... Bxa1 {[%clk 0:01:43.8]} 23. Rxa1 {[%clk 0:01:36.3]} 23... Rfd8 {[%clk
0:01:20.3]} 24. Nf4 {[%clk 0:01:35.9]} 24... Bf7 {[%clk 0:01:20.9]} 25. Qc1
{[%clk 0:01:31.5]} 25... Qb5 {[%clk 0:01:08.9]} 26. Qc3 {[%clk 0:01:26.9]} 26...
Nc6 {[%clk 0:01:04.7]} 27. Rfc1 {[%clk 0:01:22]} 27... Bxb3 {[%clk 0:00:59.3]}
28. Rab1 {[%clk 0:00:39.8]} 28... c4 {[%clk 0:01:00]} 29. d3 {[%clk 0:00:41.3]}
29... Qa5 {[%clk 0:00:26.2]} 30. dxc4 {[%clk 0:00:39.6]} 30... Qxc3 {[%clk
0:00:27.2]} 31. Rxc3 {[%clk 0:00:41.5]} 31... Ba4 {[%clk 0:00:18.1]} 32. Rxb7
{[%clk 0:00:39]} 32... Rab8 {[%clk 0:00:16.4]} 33. Bxc6 {[%clk 0:00:30.3]} 33...
Bxc6 {[%clk 0:00:17.3]} 34. Rxa7 {[%clk 0:00:31.3]} 34... Rb1+ {[%clk
0:00:18.4]} 35. Kh2 {[%clk 0:00:31.9]} 35... Rdd1 {[%clk 0:00:20]} 36. Rd3
{[%clk 0:00:26.7]} 36... Rxd3 {[%clk 0:00:12.5]} 37. Nxd3 {[%clk 0:00:28.6]}
37... Be4 {[%clk 0:00:13.9]} 38. Nf4 {[%clk 0:00:28.6]} 38... Kg8 {[%clk
0:00:13.2]} 39. c5 {[%clk 0:00:25.5]} 39... Rc1 {[%clk 0:00:13.3]} 40. Rc7
{[%clk 0:00:25.9]} 40... Rc2 {[%clk 0:00:14.3]} 41. Kg3 {[%clk 0:00:26.6]} 41...
Kh8 {[%clk 0:00:11.6]} 42. Rc8+ {[%clk 0:00:25.8]} 1-0

[Event "*** Titled Tuesday Blitz"]
[Site "Chess.com"]
[Date "2018.08.07"]
[Round "5"]
[White "OK97"]
[Black "xberli"]
[Result "0-1"]
[WhiteElo "2732"]
[BlackElo "2486"]
[TimeControl "180+2"]
[EndTime "14:04:52 PDT"]
[Termination "xberli won by resignation"]

1. Nf3 {[%clk 0:03:01.9]} 1... Nf6 {[%clk 0:02:54.1]} 2. d4 {[%clk 0:03:02.9]}
2... g6 {[%clk 0:02:54.6]} 3. Bg5 {[%clk 0:03:02.4]} 3... Bg7 {[%clk 0:02:55.5]}
4. Nbd2 {[%clk 0:03:03.5]} 4... O-O {[%clk 0:02:56.1]} 5. c3 {[%clk 0:03:03.9]}
5... d6 {[%clk 0:02:56.3]} 6. e4 {[%clk 0:03:04.2]} 6... c5 {[%clk 0:02:55.3]}
7. d5 {[%clk 0:03:05.3]} 7... a6 {[%clk 0:02:52.9]} 8. a4 {[%clk 0:03:05.4]}
8... Re8 {[%clk 0:02:51.9]} 9. Be2 {[%clk 0:03:02.4]} 9... e6 {[%clk 0:02:52.7]}
10. dxe6 {[%clk 0:03:03.8]} 10... Bxe6 {[%clk 0:02:51.1]} 11. O-O {[%clk
0:03:04.6]} 11... Qc7 {[%clk 0:02:45.9]} 12. Bxf6 {[%clk 0:02:59.6]} 12... Bxf6
{[%clk 0:02:46.3]} 13. Qc2 {[%clk 0:03:00.7]} 13... Nc6 {[%clk 0:02:43.8]} 14.
Rfd1 {[%clk 0:03:00.4]} 14... Rad8 {[%clk 0:02:43.4]} 15. Bc4 {[%clk 0:02:57]}
15... d5 {[%clk 0:01:37.2]} 16. exd5 {[%clk 0:02:55.8]} 16... Bxd5 {[%clk
0:01:39.1]} 17. Bxd5 {[%clk 0:02:57.3]} 17... Rxd5 {[%clk 0:01:39.9]} 18. Ne4
{[%clk 0:02:46.3]} 18... Rxd1+ {[%clk 0:01:40.3]} 19. Rxd1 {[%clk 0:02:48.2]}
19... Be7 {[%clk 0:01:41.2]} 20. h3 {[%clk 0:02:37.5]} 20... Rd8 {[%clk
0:01:36.8]} 21. Re1 {[%clk 0:02:32.1]} 21... Ne5 {[%clk 0:01:29]} 22. Nxe5
{[%clk 0:02:06]} 22... Qxe5 {[%clk 0:01:30.9]} 23. Qc1 {[%clk 0:02:06.8]} 23...
Kg7 {[%clk 0:01:16.9]} 24. Nd2 {[%clk 0:01:53.1]} 24... Qg5 {[%clk 0:01:05.5]}
25. Nc4 {[%clk 0:01:46.2]} 25... Qxc1 {[%clk 0:01:04.3]} 26. Rxc1 {[%clk
0:01:48.1]} 26... Bg5 {[%clk 0:01:01.8]} 27. Re1 {[%clk 0:01:20]} 27... b5
{[%clk 0:00:57.5]} 28. axb5 {[%clk 0:01:20.5]} 28... axb5 {[%clk 0:00:59.4]} 29.
Na3 {[%clk 0:01:20.5]} 29... b4 {[%clk 0:00:50.2]} 30. cxb4 {[%clk 0:01:21.4]}
30... cxb4 {[%clk 0:00:52.1]} 31. Nc4 {[%clk 0:01:18.8]} 31... Bf6 {[%clk
0:00:51.3]} 32. b3 {[%clk 0:01:09.9]} 32... Rd3 {[%clk 0:00:51.2]} 33. Rb1
{[%clk 0:01:08.1]} 33... Rc3 {[%clk 0:00:50.3]} 34. Kf1 {[%clk 0:00:59.3]} 34...
h5 {[%clk 0:00:48.4]} 35. Ne3 {[%clk 0:00:51.6]} 35... Bd4 {[%clk 0:00:45.3]}
36. Ke2 {[%clk 0:00:36]} 36... Bxe3 {[%clk 0:00:45.9]} 37. fxe3 {[%clk
0:00:37.8]} 37... Kf6 {[%clk 0:00:46]} 38. Kf3 {[%clk 0:00:30.5]} 38... Ke5
{[%clk 0:00:45]} 39. g4 {[%clk 0:00:30.5]} 39... hxg4+ {[%clk 0:00:39.5]} 40.
hxg4 {[%clk 0:00:32.4]} 40... f6 {[%clk 0:00:40.6]} 41. Rb2 {[%clk 0:00:33.1]}
41... f5 {[%clk 0:00:39.8]} 42. g5 {[%clk 0:00:31.9]} 42... Rd3 {[%clk
0:00:36.2]} 43. Rb1 {[%clk 0:00:27.9]} 43... f4 {[%clk 0:00:34.8]} 44. Ra1
{[%clk 0:00:22]} 44... Rxe3+ {[%clk 0:00:34.8]} 45. Kf2 {[%clk 0:00:23.3]} 45...
Rxb3 {[%clk 0:00:35.6]} 46. Ra6 {[%clk 0:00:24.4]} 46... Kf5 {[%clk 0:00:36.1]}
47. Ra5+ {[%clk 0:00:23.6]} 47... Kg4 {[%clk 0:00:36.9]} 48. Rb5 {[%clk
0:00:25]} 48... Rb2+ {[%clk 0:00:37.5]} 0-1

[Event "*** Titled Tuesday Blitz"]
[Site "Chess.com"]
[Date "2018.08.07"]
[Round "5"]
[White "Mbneu"]
[Black "Karina_Oparina"]
[Result "1-0"]
[WhiteElo "2287"]
[BlackElo "2146"]
[TimeControl "180+2"]
[EndTime "14:04:54 PDT"]
[Termination "Mbneu won by checkmate"]

1. d4 {[%clk 0:03:01.9]} 1... Nf6 {[%clk 0:02:59.9]} 2. c4 {[%clk 0:03:02.1]}
2... e6 {[%clk 0:03:00]} 3. Nc3 {[%clk 0:03:02.4]} 3... Bb4 {[%clk 0:02:59.7]}
4. Bg5 {[%clk 0:03:02.1]} 4... c5 {[%clk 0:02:55.7]} 5. d5 {[%clk 0:03:02.5]}
5... d6 {[%clk 0:02:47.5]} 6. e3 {[%clk 0:03:01.9]} 6... e5 {[%clk 0:02:45.7]}
7. Bd3 {[%clk 0:03:01.9]} 7... h6 {[%clk 0:02:45.2]} 8. Bh4 {[%clk 0:03:01.9]}
8... Qa5 {[%clk 0:02:33.6]} 9. Ne2 {[%clk 0:03:00.2]} 9... Nbd7 {[%clk
0:02:33.8]} 10. O-O {[%clk 0:03:00]} 10... O-O {[%clk 0:02:28.7]} 11. f4 {[%clk
0:03:00.1]} 11... Ne8 {[%clk 0:02:18.4]} 12. Be7 {[%clk 0:02:58.1]} 12... Qc7
{[%clk 0:02:12.1]} 13. Nb5 {[%clk 0:02:52.3]} 13... Qb8 {[%clk 0:02:10.6]} 14.
Bxf8 {[%clk 0:02:44.9]} 14... Nxf8 {[%clk 0:02:05.6]} 15. fxe5 {[%clk
0:02:42.8]} 15... dxe5 {[%clk 0:02:05.6]} 16. Ng3 {[%clk 0:02:34.6]} 16... a6
{[%clk 0:02:04.2]} 17. Nc3 {[%clk 0:02:34.5]} 17... Bxc3 {[%clk 0:02:03.4]} 18.
bxc3 {[%clk 0:02:34.8]} 18... Nd6 {[%clk 0:02:03.6]} 19. Qh5 {[%clk 0:02:27.2]}
19... f6 {[%clk 0:01:58]} 20. Ne4 {[%clk 0:02:07.1]} 20... Qc7 {[%clk
0:01:34.6]} 21. Nxd6 {[%clk 0:01:35.6]} 21... Qxd6 {[%clk 0:01:34.6]} 22. Bf5
{[%clk 0:01:36.9]} 22... Bxf5 {[%clk 0:01:30.5]} 23. Qxf5 {[%clk 0:01:37]} 23...
b5 {[%clk 0:01:26.7]} 24. e4 {[%clk 0:01:30.8]} 24... Rb8 {[%clk 0:01:24.3]} 25.
Rab1 {[%clk 0:01:30.3]} 25... b4 {[%clk 0:01:21.6]} 26. cxb4 {[%clk 0:01:25.4]}
26... cxb4 {[%clk 0:01:21.4]} 27. Qf2 {[%clk 0:01:26.4]} 27... Nd7 {[%clk
0:01:20.7]} 28. Qa7 {[%clk 0:01:15.9]} 28... Qc5+ {[%clk 0:01:20.4]} 29. Qxc5
{[%clk 0:01:16]} 29... Nxc5 {[%clk 0:01:20.5]} 30. Rfe1 {[%clk 0:01:17.1]} 30...
Kf7 {[%clk 0:01:15]} 31. Kf2 {[%clk 0:01:17.1]} 31... Ke7 {[%clk 0:01:15.8]} 32.
Ke3 {[%clk 0:01:17.7]} 32... Kd6 {[%clk 0:01:17.1]} 33. Re2 {[%clk 0:01:15.3]}
33... Rb6 {[%clk 0:00:56.7]} 34. g4 {[%clk 0:01:14.2]} 34... Na4 {[%clk
0:00:55.8]} 35. Rc2 {[%clk 0:01:07.6]} 35... Kc5 {[%clk 0:00:54.7]} 36. h4
{[%clk 0:01:07.1]} 36... a5 {[%clk 0:00:52.2]} 37. g5 {[%clk 0:01:05.9]} 37...
hxg5 {[%clk 0:00:51.5]} 38. hxg5 {[%clk 0:01:06.3]} 38... Rd6 {[%clk 0:00:49.2]}
39. gxf6 {[%clk 0:01:03.7]} 39... gxf6 {[%clk 0:00:49.5]} 40. Rf1 {[%clk
0:01:03.1]} 40... Nc3 {[%clk 0:00:44.9]} 41. Kd3 {[%clk 0:01:04]} 41... a4
{[%clk 0:00:40.8]} 42. Rxc3 {[%clk 0:01:03.6]} 42... bxc3 {[%clk 0:00:40.9]} 43.
Kxc3 {[%clk 0:01:05.2]} 43... Rb6 {[%clk 0:00:41.2]} 44. Rf2 {[%clk 0:01:06]}
44... Kd6 {[%clk 0:00:39.5]} 45. Rb2 {[%clk 0:01:05.2]} 45... Ra6 {[%clk
0:00:17.3]} 46. Rb5 {[%clk 0:01:01.9]} 46... Ra8 {[%clk 0:00:17.2]} 47. c5+
{[%clk 0:01:02.3]} 47... Kc7 {[%clk 0:00:17.1]} 48. Kb4 {[%clk 0:00:57.9]} 48...
Rg8 {[%clk 0:00:15.3]} 49. d6+ {[%clk 0:00:57.8]} 49... Kc6 {[%clk 0:00:15.6]}
50. Rb6+ {[%clk 0:00:57.9]} 50... Kd7 {[%clk 0:00:16.8]} 51. Rb7+ {[%clk
0:00:59]} 51... Ke6 {[%clk 0:00:16.4]} 52. Re7# {[%clk 0:00:59.4]} 1-0

[Event "*** Titled Tuesday Blitz"]
[Site "Chess.com"]
[Date "2018.08.07"]
[Round "5"]
[White "Litti"]
[Black "gena217"]
[Result "0-1"]
[WhiteElo "2465"]
[BlackElo "2718"]
[TimeControl "180+2"]
[EndTime "14:04:55 PDT"]
[Termination "gena217 won by resignation"]

1. e4 {[%clk 0:03:01.9]} 1... c6 {[%clk 0:03:00.6]} 2. d4 {[%clk 0:03:02.1]}
2... d5 {[%clk 0:03:02.5]} 3. Nd2 {[%clk 0:03:02.5]} 3... dxe4 {[%clk
0:03:03.3]} 4. Nxe4 {[%clk 0:03:04.4]} 4... Bf5 {[%clk 0:03:03.7]} 5. Ng3 {[%clk
0:03:05.3]} 5... Bg6 {[%clk 0:03:04.3]} 6. h4 {[%clk 0:03:07.2]} 6... h6 {[%clk
0:03:05.2]} 7. Nh3 {[%clk 0:03:08.7]} 7... e6 {[%clk 0:03:05.7]} 8. Nf4 {[%clk
0:03:09.6]} 8... Bh7 {[%clk 0:03:07.2]} 9. Bc4 {[%clk 0:03:11.2]} 9... Nf6
{[%clk 0:03:07]} 10. O-O {[%clk 0:03:12.3]} 10... Bd6 {[%clk 0:02:54]} 11. Re1
{[%clk 0:03:13.1]} 11... O-O {[%clk 0:02:52.8]} 12. c3 {[%clk 0:03:14.1]} 12...
Qc7 {[%clk 0:02:41.8]} 13. Ngh5 {[%clk 0:03:12.2]} 13... Nbd7 {[%clk 0:02:41.6]}
14. Qf3 {[%clk 0:02:50.4]} 14... Rae8 {[%clk 0:02:35.8]} 15. Bd2 {[%clk
0:02:47.4]} 15... Bf5 {[%clk 0:02:25.4]} 16. Nxf6+ {[%clk 0:02:37.8]} 16... Nxf6
{[%clk 0:02:27.3]} 17. Nh5 {[%clk 0:02:36.4]} 17... Nxh5 {[%clk 0:02:27.9]} 18.
Qxh5 {[%clk 0:02:38.3]} 18... c5 {[%clk 0:02:29.4]} 19. d5 {[%clk 0:02:31.9]}
19... Bg6 {[%clk 0:02:20.5]} 20. Qg4 {[%clk 0:02:29.5]} 20... Bf5 {[%clk
0:02:05.7]} 21. Qh5 {[%clk 0:02:28.8]} 21... Bf4 {[%clk 0:01:49.4]} 22. dxe6
{[%clk 0:02:16.9]} 22... fxe6 {[%clk 0:01:45.1]} 23. Rad1 {[%clk 0:01:52.1]}
23... Bxd2 {[%clk 0:01:37.5]} 24. Rxd2 {[%clk 0:01:54]} 24... Qf4 {[%clk
0:01:38.6]} 25. Qe2 {[%clk 0:01:34.6]} 25... Bg4 {[%clk 0:01:39.6]} 26. Qe4
{[%clk 0:01:26.2]} 26... Qxd2 {[%clk 0:01:39.1]} 27. f3 {[%clk 0:01:21.8]} 27...
Bf5 {[%clk 0:01:36.6]} 28. Qe5 {[%clk 0:01:20.4]} 28... b6 {[%clk 0:01:27.4]}
29. Re2 {[%clk 0:01:20.2]} 29... Qd8 {[%clk 0:01:14]} 30. Qg3 {[%clk 0:01:19.1]}
30... Qf6 {[%clk 0:01:13.1]} 31. Re5 {[%clk 0:01:15.3]} 31... Kh8 {[%clk
0:01:13]} 32. Kh2 {[%clk 0:01:15.1]} 32... Rd8 {[%clk 0:01:10.5]} 33. Qf4 {[%clk
0:01:13.2]} 33... Bh7 {[%clk 0:01:07.7]} 34. Qg3 {[%clk 0:01:11.8]} 34... Qf4
{[%clk 0:01:08.3]} 35. Bxe6 {[%clk 0:01:07.1]} 35... Qxg3+ {[%clk 0:01:07.6]}
36. Kxg3 {[%clk 0:01:09]} 36... Rde8 {[%clk 0:01:08.9]} 37. f4 {[%clk
0:01:09.6]} 37... Bg8 {[%clk 0:01:06.5]} 38. Bd7 {[%clk 0:01:09]} 38... Rd8
{[%clk 0:00:57.3]} 39. Bb5 {[%clk 0:01:07.1]} 39... Rd2 {[%clk 0:00:57.2]} 40.
a4 {[%clk 0:00:55.7]} 40... Rxb2 {[%clk 0:00:56.2]} 41. h5 {[%clk 0:00:55.6]}
41... Rd2 {[%clk 0:00:50.7]} 42. Re7 {[%clk 0:00:55.1]} 42... Bd5 {[%clk
0:00:50.3]} 43. Bf1 {[%clk 0:00:51.9]} 43... Rc2 {[%clk 0:00:42.7]} 44. f5
{[%clk 0:00:41.6]} 44... Rxc3+ {[%clk 0:00:42.2]} 45. Kf4 {[%clk 0:00:42.7]}
45... Bc4 {[%clk 0:00:42.1]} 46. Bxc4 {[%clk 0:00:38.1]} 46... Rxc4+ {[%clk
0:00:44]} 47. Ke5 {[%clk 0:00:40]} 47... Rxa4 {[%clk 0:00:44.9]} 48. g4 {[%clk
0:00:40.2]} 48... Rxg4 {[%clk 0:00:45.7]} 0-1